lending/lending_fUSD_20260310
["ID","MTS","AMOUNT","RATE_DAILY","PERIOD"]
[408067273,1773102639687,-259.53855074,0.0001913,2]
[408067274,1773102639696,-496.40379828,0.0001913,2]
[408067275,1773102639706,-196.51282028,0.0001913,2]
[408067276,1773102639715,-150.0,0.00019131,2]
[408067277,1773102639724,-189.93,0.00019137,2]
[408067278,1773102639733,-150.0,0.00019138,2]
[408067279,1773102639743,-178.69066135,0.0001914,2]
[408067280,1773102639752,-237.47755465,0.0001914,2]
[408067281,1773102639761,-259.53855074,0.0001914,2]
[408067282,1773102639770,-496.40379828,0.0001914,2]
[408067283,1773102639779,-196.51282028,0.0001914,2]
[408067284,1773102639791,-150.0,0.00019141,2]
[408067285,1773102639802,-584.42,0.00019141,2]
[408067286,1773102639812,-150.0,0.00019142,2]
[408067287,1773102639830,-150.0,0.00019149,2]
[408067288,1773102639841,-209.28,0.0001915,2]
[408067289,1773102639850,-178.69066135,0.0001915,2]
[408067290,1773102639864,-237.47755465,0.0001915,2]
[408067291,1773102639884,-259.53855074,0.0001915,2]
[408067292,1773102639898,-496.40379828,0.0001915,2]
[408067293,1773102639908,-196.51282028,0.0001915,2]
[408067294,1773102639918,-150.0,0.00019151,2]
[408067295,1773102639927,-150.0,0.00019151,2]
[408067296,1773102639936,-150.0,0.00019152,2]
[408067297,1773102639945,-150.0,0.00019155,2]
[408067298,1773102639954,-178.69066135,0.0001916,2]
[408067299,1773102639963,-237.47755465,0.0001916,2]
[408067300,1773102639972,-259.53855074,0.0001916,2]
[408067301,1773102639982,-496.40379828,0.0001916,2]
[408067302,1773102639995,-196.51282028,0.0001916,2]
[408067303,1773102640004,-150.0,0.00019162,2]
[408067304,1773102640013,-150.0,0.00019163,2]
[408067305,1773102640022,-1000.0,0.00019164,2]
[408067306,1773102640031,-150.0,0.00019167,2]
[408067307,1773102640040,-178.69066135,0.00019171,2]
[408067308,1773102640049,-237.47755465,0.00019171,2]
[408067309,1773102640059,-259.53855074,0.00019171,2]
[408067310,1773102640069,-496.40379828,0.00019171,2]
[408067311,1773102640078,-196.51282028,0.00019171,2]
[408067312,1773102640087,-150.0,0.00019172,2]
[408067313,1773102640097,-150.0,0.00019174,2]
[408067314,1773102640107,-150.0,0.00019176,2]
[408067315,1773102640116,-150.0,0.00019178,4]
[408067316,1773102640125,-150.0,0.00019178,4]
[408067317,1773102640135,-161.62513775,0.00019178,2]
[408067318,1773102640144,-151.0,0.00019178,2]
[408067319,1773102640153,-151.0,0.00019178,2]
[408067320,1773102640163,-151.0,0.00019178,2]
[408067321,1773102640172,-151.0,0.00019178,2]
[408067322,1773102640182,-151.0,0.00019178,2]
[408067323,1773102640191,-151.0,0.00019178,2]
[408067324,1773102640200,-151.0,0.00019178,2]
[408067325,1773102640210,-151.0,0.00019178,2]
[408067327,1773102640219,-151.0,0.00019178,2]
[408067329,1773102640228,-151.0,0.00019178,2]
[408067331,1773102640237,-151.0,0.00019178,2]
[408067332,1773102640247,-166.895967,0.00019178,2]
[408067333,1773102640256,-174.524052,0.00019178,2]
[408067334,1773102640265,-174.524052,0.00019178,2]
[408067335,1773102640274,-174.524052,0.00019178,2]
[408067336,1773102640283,-174.524052,0.00019178,2]
[408067337,1773102640292,-174.524052,0.00019178,2]
[408067338,1773102640301,-174.524052,0.00019178,2]
[408067339,1773102640311,-1000.0,0.00019178,2]
[408067340,1773102640320,-787.0,0.00019178,2]
[408067341,1773102640329,-178.69066135,0.00019181,4]
[408067342,1773102640338,-237.47755465,0.00019181,4]
[408067343,1773102640348,-259.53855074,0.00019181,4]
[408067344,1773102640357,-496.40379828,0.00019181,4]
[408067345,1773102640366,-196.51282028,0.00019181,4]
[408067346,1773102640376,-694.728393,0.00019181,2]
[408067347,1773102640385,-694.728393,0.00019181,2]
[408067348,1773102640395,-694.728393,0.00019181,2]
[408067349,1773102640404,-694.728393,0.00019181,2]
[408067350,1773102640415,-151.0,0.00019181,2]
[408067351,1773102640424,-151.0,0.00019181,2]
[408067352,1773102640433,-151.0,0.00019181,2]
[408067353,1773102640443,-174.524052,0.00019181,2]
[408067354,1773102640453,-174.524052,0.00019181,2]
[408067355,1773102640462,-174.524052,0.00019181,2]
[408067356,1773102640471,-150.0,0.00019181,4]
[408067357,1773102640481,-150.0,0.00019185,4]
[408067358,1773102640491,-150.0,0.00019185,4]
[408067359,1773102640500,-150.0,0.00019189,4]
[408067360,1773102640510,-178.69066135,0.00019191,4]
[408067361,1773102640519,-237.47755465,0.00019191,4]
[408067362,1773102640528,-259.53855074,0.00019191,4]
[408067363,1773102640538,-496.40379828,0.00019191,4]
[408067364,1773102640547,-196.51282028,0.00019191,4]
[408067365,1773102640557,-2339.09427755,0.00019195,2]
[408067366,1773102640567,-150.0,0.00019196,4]
[408067367,1773102640576,-150.0,0.00019201,4]
[408067368,1773102640585,-178.69066135,0.00019201,4]
[408067369,1773102640595,-237.47755465,0.00019201,4]
[408067370,1773102640606,-259.53855074,0.00019201,4]
[408067371,1773102640616,-496.40379828,0.00019201,4]
[408067372,1773102640625,-196.51282028,0.00019201,4]
[408067373,1773102640634,-150.0,0.00019204,4]
[408067374,1773102640643,-150.0,0.00019205,4]
[408067375,1773102640653,-150.0,0.00019205,4]
[408067376,1773102640663,-160.90423195,0.00019205,2]
[408067377,1773102640672,-150.0,0.00019206,4]
[408067378,1773102640681,-150.0,0.00019207,4]
[408067379,1773102640691,-178.69066135,0.00019212,4]
[408067380,1773102640700,-237.47755465,0.00019212,4]
[408067381,1773102640709,-259.53855074,0.00019212,4]
[408067382,1773102640719,-496.40379828,0.00019212,4]
[408067383,1773102640728,-196.51282028,0.00019212,4]
[408067384,1773102640737,-150.0,0.00019218,4]
[408067385,1773102640746,-150.0,0.0001922,4]
[408067386,1773102640756,-150.0,0.00019222,4]
[408067387,1773102640765,-178.69066135,0.00019222,4]
[408067388,1773102640774,-237.47755465,0.00019222,4]
[408067389,1773102640783,-259.53855074,0.00019222,4]
[408067390,1773102640793,-496.40379828,0.00019222,4]
[408067391,1773102640802,-196.51282028,0.00019222,4]
[408067392,1773102640811,-150.0,0.00019223,4]
[408067393,1773102640821,-150.0,0.00019229,4]
[408067394,1773102640831,-178.69066135,0.00019232,4]
[408067395,1773102640840,-237.47755465,0.00019232,4]
[408067396,1773102640849,-259.53855074,0.00019232,4]
[408067397,1773102640858,-496.40379828,0.00019232,4]
[408067398,1773102640868,-196.51282028,0.00019232,4]
[408067399,1773102640877,-150.0,0.00019233,4]
[408067400,1773102640886,-150.0,0.00019233,4]
[408067401,1773102640895,-151.0,0.00019237,2]
[408067402,1773102640905,-151.0,0.00019237,2]
[408067403,1773102640914,-151.0,0.00019237,2]
[408067404,1773102640923,-151.0,0.00019237,2]
[408067405,1773102640933,-525.997103,0.00019237,2]
[408067406,1773102640943,-525.997103,0.00019237,2]
[408067407,1773102640953,-525.997103,0.00019237,2]
[408067409,1773102640962,-525.997103,0.00019237,2]
[408067410,1773102640972,-151.0,0.00019237,2]
[408067411,1773102640982,-151.0,0.00019237,2]
[408067412,1773102640996,-150.0,0.0001924,4]
[408067413,1773102641007,-150.0,0.0001924,4]
[408067414,1773102641016,-150.0,0.0001924,4]
[408067415,1773102641026,-150.0,0.0001924,4]
[408067416,1773102641035,-150.0,0.0001924,4]
[408067417,1773102641045,-150.0,0.0001924,4]
[408067418,1773102641054,-178.69066135,0.00019242,4]
[408067419,1773102641064,-237.47755465,0.00019242,4]
[408067420,1773102641074,-259.53855074,0.00019242,4]
[408067421,1773102641083,-496.40379828,0.00019242,4]
[408067422,1773102641094,-196.51282028,0.00019242,4]
[408067423,1773102641105,-189.93,0.00019243,2]
[408067424,1773102641114,-14224.85525866,0.00019249,2]
[408067425,1773102641124,-150.0,0.00019251,4]
[408067426,1773102641133,-11520.35896158,0.00019251,2]
[408067427,1773102641142,-178.69066135,0.00019253,4]
[408067428,1773102641152,-237.47755465,0.00019253,4]
[408067429,1773102641161,-259.53855074,0.00019253,4]
[408067430,1773102641170,-496.40379828,0.00019253,4]
[408067432,1773102641179,-196.51282028,0.00019253,4]
[408067434,1773102641189,-150.0,0.00019257,4]
[408067435,1773102641197,-150.0,0.00019258,4]
[408067436,1773102641206,-150.0,0.00019259,4]
[408067437,1773102641215,-209.28,0.0001926,2]
[408067438,1773102641225,-150.0,0.0001926,4]
[408067439,1773102641234,-150.0,0.0001926,4]
[408067440,1773102641243,-150.0,0.00019262,4]
[408067441,1773102641252,-178.69066135,0.00019263,4]
[408067442,1773102641261,-237.47755465,0.00019263,4]
[408067443,1773102641270,-259.53855074,0.00019263,4]
[408067444,1773102641279,-496.40379828,0.00019263,4]
[408067445,1773102641289,-196.51282028,0.00019263,4]
[408067446,1773102641298,-150.0,0.00019273,4]
[408067447,1773102641307,-178.69066135,0.00019273,4]
[408067448,1773102641317,-237.47755465,0.00019273,4]
[408067449,1773102641326,-259.53855074,0.00019273,4]
[408067450,1773102641335,-496.40379828,0.00019273,4]
[408067451,1773102641344,-196.51282028,0.00019273,4]
[408067452,1773102641354,-150.0,0.00019274,4]
[408067453,1773102641363,-150.0,0.00019276,4]
[408067454,1773102641373,-150.0,0.00019279,4]
[408067455,1773102641382,-178.69066135,0.00019283,4]
[408067456,1773102641391,-237.47755465,0.00019283,4]
[408067457,1773102641400,-259.53855074,0.00019283,4]
[408067458,1773102641410,-496.40379828,0.00019283,4]
[408067459,1773102641420,-196.51282028,0.00019283,4]
[408067460,1773102641430,-150.0,0.00019284,4]
[408067461,1773102641439,-150.0,0.00019288,4]
[408067462,1773102641448,-150.0,0.00019288,4]
[408067463,1773102641458,-161.62513775,0.00019288,2]
[408067464,1773102641466,-1712.150923,0.0001929,2]
[408067465,1773102641476,-150.0,0.0001929,4]
[408067466,1773102641485,-178.69066135,0.00019293,4]
[408067467,1773102641495,-237.47755465,0.00019293,4]
[408067468,1773102641504,-259.53855074,0.00019293,4]
[408067469,1773102641704,-496.40379828,0.00019293,4]
[408067470,1773102641714,-196.51282028,0.00019293,4]
[408067471,1773102641723,-150.0,0.00019294,4]
[408067472,1773102641732,-150.0,0.00019295,4]
[408067473,1773102641741,-150.0,0.00019298,4]
[408067474,1773102641757,-4160.41218098,0.00019303,2]
[408067475,1773102641766,-150.0,0.00019303,4]
[408067476,1773102641775,-178.69066135,0.00019304,4]
[408067477,1773102641784,-237.47755465,0.00019304,4]
[408067478,1773102641793,-259.53855074,0.00019304,4]
[408067479,1773102641802,-496.40379828,0.00019304,4]
[408067480,1773102641811,-196.51282028,0.00019304,4]
[408067481,1773102641820,-150.0,0.00019306,4]
[408067482,1773102641829,-150.0,0.00019307,4]
[408067483,1773102641838,-150.0,0.00019312,4]
[408067484,1773102641848,-2000.0,0.00019313,2]
[408067485,1773102641857,-178.69066135,0.00019314,4]
[408067486,1773102641866,-237.47755465,0.00019314,4]
[408067487,1773102641875,-259.53855074,0.00019314,4]
[408067488,1773102641885,-496.40379828,0.00019314,4]
[408067489,1773102641894,-196.51282028,0.00019314,4]
[408067490,1773102641903,-150.0,0.00019315,4]
[408067491,1773102641915,-150.0,0.00019315,4]
[408067492,1773102641925,-150.0,0.00019317,4]
[408067493,1773102641934,-150.0,0.00019318,4]
[408067494,1773102641943,-150.0,0.00019324,4]
[408067495,1773102641952,-178.69066135,0.00019324,4]
[408067496,1773102641961,-237.47755465,0.00019324,4]
[408067497,1773102641971,-259.53855074,0.00019324,4]
[408067498,1773102641980,-496.40379828,0.00019324,4]
[408067499,1773102641989,-150.0,0.00019324,4]
[408067500,1773102642003,-196.51282028,0.00019324,4]
[408067501,1773102642013,-150.0,0.00019328,4]
[408067502,1773102642023,-150.0,0.0001933,4]
[408067503,1773102642032,-178.69066135,0.00019334,4]
[408067504,1773102642042,-237.47755465,0.00019334,4]
[408067505,1773102642052,-259.53855074,0.00019334,4]
[408067506,1773102642061,-496.40379828,0.00019334,4]
[408067507,1773102642072,-196.51282028,0.00019334,4]
[408067508,1773102642081,-150.0,0.00019337,4]
[408067509,1773102642090,-150.0,0.00019339,4]
[408067510,1773102642100,-150.0,0.00019341,4]
[408067511,1773102642108,-150.0,0.00019342,4]
[408067512,1773102642117,-150.0,0.00019342,4]
[408067513,1773102642126,-178.69066135,0.00019345,4]
[408067514,1773102642136,-237.47755465,0.00019345,4]
[408067515,1773102642146,-259.53855074,0.00019345,4]
[408067516,1773102642156,-496.40379828,0.00019345,4]
[408067517,1773102642166,-196.51282028,0.00019345,4]
[408067518,1773102642175,-151.0,0.00019347,2]
[408067519,1773102642184,-151.0,0.00019347,2]
[408067520,1773102642193,-150.0,0.00019348,4]
[408067521,1773102642202,-150.0,0.0001935,4]
[408067522,1773102642211,-178.69066135,0.00019355,4]
[408067523,1773102642220,-237.47755465,0.00019355,4]
[408067524,1773102642230,-259.53855074,0.00019355,4]
[408067525,1773102642240,-496.40379828,0.00019355,4]
[408067526,1773102642250,-196.51282028,0.00019355,4]
[408067527,1773102642259,-150.0,0.00019357,4]
[408067528,1773102642268,-150.0,0.00019358,4]
[408067529,1773102642277,-150.0,0.00019361,4]
[408067530,1773102642286,-178.69066135,0.00019365,4]
[408067531,1773102642295,-237.47755465,0.00019365,4]
[408067532,1773102642304,-259.53855074,0.00019365,4]
[408067533,1773102642313,-496.40379828,0.00019365,4]
[408067534,1773102642324,-196.51282028,0.00019365,4]
[408067535,1773102642333,-151.0,0.00019366,2]
[408067536,1773102642343,-361.876305,0.00019366,2]
[408067537,1773102642352,-361.876305,0.00019366,2]
[408067538,1773102642361,-361.876305,0.00019366,2]
[408067539,1773102642370,-361.876305,0.00019366,2]
[408067540,1773102642380,-150.0,0.00019366,4]
[408067541,1773102642389,-150.0,0.00019366,4]
[408067542,1773102642398,-150.0,0.0001937,4]
[408067543,1773102642409,-150.0,0.0001937,4]
[408067544,1773102642419,-161.62513775,0.0001937,2]
[408067545,1773102642428,-150.0,0.00019372,4]
[408067546,1773102642438,-150.0,0.00019375,4]
[408067547,1773102642448,-178.69066135,0.00019375,4]
[408067548,1773102642458,-237.47755465,0.00019375,4]
[408067549,1773102642468,-259.53855074,0.00019375,4]
[408067550,1773102642478,-496.40379828,0.00019375,4]
[408067551,1773102642488,-196.51282028,0.00019375,4]
[408067552,1773102642499,-253.2331386,0.00019376,2]
[408067553,1773102642508,-150.0,0.00019376,4]
[408067554,1773102642519,-14224.85525866,0.00019379,2]
[408067555,1773102642528,-150.0,0.00019383,4]
[408067556,1773102642538,-150.0,0.00019385,4]
[408067557,1773102642548,-178.69066135,0.00019386,4]
[408067558,1773102642557,-237.47755465,0.00019386,4]
[408067559,1773102642566,-259.53855074,0.00019386,4]
[408067560,1773102642576,-496.40379828,0.00019386,4]
[408067561,1773102642585,-196.51282028,0.00019386,4]
[408067562,1773102642594,-150.0,0.00019392,4]
[408067563,1773102642604,-150.0,0.00019394,4]
[408067564,1773102642613,-150.0,0.00019396,4]
[408067565,1773102642623,-178.69066135,0.00019396,4]
[408067566,1773102642632,-237.47755465,0.00019396,4]
[408067568,1773102642642,-259.53855074,0.00019396,4]
[408067569,1773102642651,-496.40379828,0.00019396,4]
[408067570,1773102642660,-196.51282028,0.00019396,4]
[408067571,1773102642670,-279.02,0.00019397,2]
[408067572,1773102642680,-150.0,0.00019397,4]
[408067573,1773102642689,-150.0,0.00019397,4]
[408067574,1773102642698,-427.54291811,0.00019403,2]
[408067575,1773102642707,-218.81276387,0.00019403,2]
[408067576,1773102642716,-150.0,0.00019403,4]
[408067577,1773102642725,-150.0,0.00019405,4]
[408067578,1773102642735,-178.69066135,0.00019406,4]
[408067579,1773102642744,-237.47755465,0.00019406,4]
[408067580,1773102642753,-259.53855074,0.00019406,4]
[408067581,1773102642762,-496.40379828,0.00019406,4]
[408067582,1773102642771,-196.51282028,0.00019406,4]
[408067583,1773102642780,-150.0,0.00019409,4]
[408067584,1773102642793,-150.0,0.00019415,4]
[408067585,1773102642802,-150.0,0.00019416,4]
[408067586,1773102642812,-178.69066135,0.00019416,4]
[408067587,1773102642820,-237.47755465,0.00019416,4]
[408067589,1773102642829,-259.53855074,0.00019416,4]
[408067591,1773102642839,-496.40379828,0.00019416,4]
[408067592,1773102642848,-196.51282028,0.00019416,4]
[408067595,1773102642857,-150.0,0.00019421,4]
[408067598,1773102642866,-160.90423195,0.00019425,2]
[408067600,1773102642875,-150.0,0.00019425,4]
[408067601,1773102642884,-150.0,0.00019425,4]
[408067602,1773102642893,-150.0,0.00019426,4]
[408067603,1773102642913,-178.69066135,0.00019427,4]
[408067604,1773102642929,-237.47755465,0.00019427,4]
[408067605,1773102642948,-259.53855074,0.00019427,4]
[408067606,1773102642966,-496.40379828,0.00019427,4]
[408067607,1773102642981,-196.51282028,0.00019427,4]
[408067608,1773102643001,-150.0,0.00019427,4]
[408067609,1773102643019,-150.0,0.0001943,4]
[408067612,1773102643039,-2339.09427755,0.0001943,2]
[408067613,1773102643058,-150.0,0.00019435,4]
[408067614,1773102643077,-178.69066135,0.00019437,4]
[408067615,1773102643094,-237.47755465,0.00019437,4]
[408067616,1773102643109,-259.53855074,0.00019437,4]
[408067617,1773102643123,-496.40379828,0.00019437,4]
[408067618,1773102643140,-196.51282028,0.00019437,4]
[408067619,1773102643158,-150.0,0.00019438,4]
[408067620,1773102643176,-150.0,0.00019439,4]
[408067621,1773102643189,-150.0,0.00019439,2]
[408067622,1773102643204,-150.0,0.00019442,4]
[408067623,1773102643219,-178.69066135,0.00019447,4]
[408067624,1773102643233,-237.47755465,0.00019447,4]
[408067625,1773102643248,-259.53855074,0.00019447,4]
[408067626,1773102643263,-496.40379828,0.00019447,4]
[408067627,1773102643285,-196.51282028,0.00019447,4]
[408067628,1773102643300,-150.0,0.00019449,4]
[408067630,1773102643315,-151.0,0.00019452,2]
[408067631,1773102643330,-500.0,0.00019452,7]
[408067632,1773102643345,-500.0,0.00019452,7]
[408067633,1773102643360,-150.0,0.00019452,4]
[408067634,1773102643375,-150.0,0.00019452,4]
[408067635,1773102643390,-787.0,0.00019452,2]
[408067636,1773102643405,-787.0,0.00019452,2]
[408067637,1773102643420,-1000.0,0.00019452,2]
[408067638,1773102643437,-150.0,0.00019454,4]
[408067639,1773102643452,-150.0,0.00019457,4]
[408067640,1773102643466,-178.69066135,0.00019457,4]
[408067641,1773102643481,-237.47755465,0.00019457,4]
[408067642,1773102643496,-259.53855074,0.00019457,4]
[408067643,1773102643511,-496.40379828,0.00019457,4]
[408067644,1773102643525,-196.51282028,0.00019457,4]
[408067645,1773102643542,-151.0,0.00019458,2]
[408067646,1773102643556,-151.0,0.00019458,2]
[408067647,1773102643571,-869.100123,0.00019458,2]
[408067648,1773102643586,-869.100123,0.00019458,2]
[408067649,1773102643600,-869.100123,0.00019458,2]
[408067650,1773102643614,-869.100123,0.00019458,2]
[408067651,1773102643629,-154.136104,0.00019458,2]
[408067652,1773102643644,-151.0,0.00019458,2]
[408067653,1773102643661,-1000.0,0.00019459,2]
[408067654,1773102643675,-181.08010149,0.00019459,2]
[408067655,1773102643690,-184.51044822,0.00019459,2]
[408067656,1773102643705,-150.0,0.00019459,4]
[408067657,1773102643719,-150.0,0.0001946,4]
[408067658,1773102643734,-178.69066135,0.00019468,4]
[408067660,1773102643749,-237.47755465,0.00019468,4]
[408067663,1773102643764,-259.53855074,0.00019468,4]
[408067665,1773102643780,-496.40379828,0.00019468,4]
[408067667,1773102643793,-196.51282028,0.00019468,4]
[408067668,1773102643809,-11520.35896158,0.00019468,2]
[408067669,1773102643823,-694.728393,0.00019468,2]
[408067670,1773102643838,-694.728393,0.00019468,2]
[408067671,1773102643852,-694.728393,0.00019468,2]
[408067672,1773102643867,-694.728393,0.00019468,2]
[408067673,1773102643881,-151.0,0.00019468,2]
[408067674,1773102643896,-151.0,0.00019468,2]
[408067675,1773102643912,-151.0,0.00019468,2]
[408067676,1773102643928,-174.524052,0.00019468,2]
[408067677,1773102643942,-174.524052,0.00019468,2]
[408067678,1773102643957,-174.524052,0.00019468,2]
[408067679,1773102643971,-10000.0,0.00019468,2]
[408067680,1773102643986,-150.0,0.00019471,4]
[408067681,1773102644005,-150.0,0.00019474,4]
[408067682,1773102644019,-150.0,0.00019475,4]
[408067683,1773102644036,-150.0,0.00019476,4]
[408067684,1773102644053,-178.69066135,0.00019478,4]
[408067685,1773102644068,-237.47755465,0.00019478,4]
[408067686,1773102644084,-259.53855074,0.00019478,4]
[408067687,1773102644098,-496.40379828,0.00019478,4]
[408067688,1773102644112,-196.51282028,0.00019478,4]
[408067689,1773102644127,-150.0,0.00019479,4]
[408067690,1773102644142,-150.0,0.00019479,4]
[408067691,1773102644157,-161.62513775,0.00019479,2]
[408067692,1773102644173,-150.0,0.00019482,4]
[408067693,1773102644187,-178.69066135,0.00019488,4]
[408067694,1773102644202,-237.47755465,0.00019488,4]
[408067695,1773102644219,-259.53855074,0.00019488,4]
[408067696,1773102644234,-496.40379828,0.00019488,4]
[408067697,1773102644249,-196.51282028,0.00019488,4]
[408067698,1773102644264,-150.0,0.00019493,4]
[408067699,1773102644279,-150.0,0.00019493,4]
[408067700,1773102644292,-150.0,0.00019493,4]
[408067701,1773102644307,-150.0,0.00019493,4]
[408067702,1773102644322,-150.0,0.00019493,4]
[408067703,1773102644337,-150.0,0.00019493,4]
[408067704,1773102644351,-178.69066135,0.00019498,4]
[408067705,1773102644366,-237.47755465,0.00019498,4]
[408067706,1773102644382,-259.53855074,0.00019498,4]
[408067707,1773102644396,-496.40379828,0.00019498,4]
[408067708,1773102644411,-196.51282028,0.00019498,4]
[408067709,1773102644426,-2000.0,0.000195,2]
[408067710,1773102644440,-500.0,0.000195,2]
[408067711,1773102644455,-67013.32147745,0.000195,3]
[408067712,1773102644470,-151.0,0.000195,2]
[408067713,1773102644485,-151.0,0.000195,2]
[408067714,1773102644501,-238.192373,0.000195,2]
[408067715,1773102644515,-151.0,0.000195,2]
[408067716,1773102644529,-151.0,0.000195,2]
[408067717,1773102644545,-525.997103,0.000195,2]
[408067718,1773102644559,-525.997103,0.000195,2]
[408067719,1773102644573,-525.997103,0.000195,2]
[408067720,1773102644589,-525.997103,0.000195,2]
[408067721,1773102644604,-151.0,0.000195,2]
[408067722,1773102644620,-151.0,0.000195,2]
[408067723,1773102644635,-151.0,0.000195,2]
[408067724,1773102644650,-361.876305,0.000195,2]
[408067725,1773102644665,-361.876305,0.000195,2]
[408067726,1773102644680,-361.876305,0.000195,2]
[408067727,1773102644695,-361.876306,0.000195,2]
[408067728,1773102644710,-4160.41218098,0.00019502,2]
[408067729,1773102644727,-150.0,0.00019504,4]
[408067730,1773102644742,-150.0,0.00019507,4]
[408067731,1773102644759,-150.0,0.00019507,4]
[408067732,1773102644773,-694.728393,0.00019508,2]
[408067733,1773102644789,-694.728393,0.00019508,2]
[408067734,1773102644804,-694.728393,0.00019508,2]
[408067735,1773102644819,-694.728398,0.00019508,2]
[408067736,1773102644834,-151.0,0.00019508,2]
[408067737,1773102644848,-151.0,0.00019508,2]
[408067738,1773102644863,-151.0,0.00019508,2]
[408067739,1773102644878,-174.524052,0.00019508,2]
[408067740,1773102645184,-174.524052,0.00019508,2]
[408067741,1773102645194,-178.69066135,0.00019509,4]
[408067742,1773102645203,-237.47755465,0.00019509,4]
[408067743,1773102645212,-259.53855074,0.00019509,4]
[408067744,1773102645222,-496.40379828,0.00019509,4]
[408067745,1773102645231,-196.51282028,0.00019509,4]
[408067746,1773102645240,-14224.85525866,0.00019509,2]
[408067747,1773102645250,-150.0,0.0001951,4]
[408067748,1773102645260,-150.0,0.00019511,4]
[408067749,1773102645270,-150.0,0.00019513,4]
[408067750,1773102645279,-150.0,0.00019515,4]
[408067751,1773102645289,-178.69066135,0.00019519,4]
[408067752,1773102645298,-237.47755465,0.00019519,4]
[408067753,1773102645307,-259.53855074,0.00019519,4]
[408067754,1773102645316,-496.40379828,0.00019519,4]
[408067755,1773102645325,-196.51282028,0.00019519,4]
[408067756,1773102645335,-150.0,0.00019519,2]
[408067757,1773102645344,-150.0,0.00019526,4]
[408067758,1773102645353,-150.0,0.00019527,4]
[408067759,1773102645363,-178.69066135,0.00019529,4]
[408067760,1773102645372,-237.47755465,0.00019529,4]
[408067761,1773102645382,-259.53855074,0.00019529,4]
[408067762,1773102645392,-496.40379828,0.00019529,4]
[408067763,1773102645402,-196.51282028,0.00019529,4]
[408067764,1773102645412,-150.0,0.00019529,4]
[408067765,1773102645421,-150.0,0.00019532,4]
[408067766,1773102645430,-150.0,0.00019534,4]
[408067767,1773102645440,-150.0,0.00019534,4]
[408067768,1773102645449,-150.0,0.00019537,4]
[408067769,1773102645458,-151.0,0.00019538,2]
[408067770,1773102645467,-156.246041,0.00019538,2]
[408067771,1773102645477,-151.0,0.00019538,2]
[408067772,1773102645486,-869.100123,0.00019538,2]
[408067773,1773102645496,-869.100123,0.00019538,2]
[408067774,1773102645505,-869.100123,0.00019538,2]
[408067775,1773102645515,-869.100123,0.00019538,2]
[408067776,1773102645524,-151.0,0.00019538,2]
[408067777,1773102645533,-151.0,0.00019538,2]
[408067778,1773102645542,-151.0,0.00019538,2]
[408067779,1773102645552,-151.0,0.00019538,2]
[408067780,1773102645562,-525.997103,0.00019538,2]
[408067781,1773102645571,-525.997103,0.00019538,2]
[408067782,1773102645580,-525.997103,0.00019538,2]
[408067783,1773102645590,-525.997112,0.00019538,2]
[408067784,1773102645599,-151.0,0.00019538,2]
[408067785,1773102645608,-278.37993,0.00019538,2]
[408067786,1773102645618,-87953.0004,0.00019538,2]
[408067787,1773102645628,-3624.97,0.00019539,2]
[408067788,1773102645638,-178.69066135,0.00019539,4]
[408067789,1773102645647,-237.47755465,0.00019539,4]
[408067790,1773102645657,-259.53855074,0.00019539,4]
[408067791,1773102645667,-496.40379828,0.00019539,4]
[408067792,1773102645676,-196.51282028,0.00019539,4]
[408067793,1773102645685,-150.0,0.00019544,4]
[408067794,1773102645695,-150.0,0.00019547,4]